bitfinex/quotes_SOLUSD_20250602
["timestamp","ask_amount","ask_price","bid_price","bid_amount"]
[1748902032048,187.84,155.93,155.89,41.48981657]
[1748902032463,146.4,155.93,155.89,41.48981657]
[1748902033749,164.93808779,155.93,155.89,22.95172878]
[1748902034153,164.93808779,155.92,155.89,6.91477965]
[1748902034461,18.53808779,155.9,155.89,6.41477965]
[1748902034761,18.53808779,155.9,155.87,6.41560274]
[1748902034936,18.53808779,155.88,155.87,6.41560274]
[1748902035143,59.97808779,155.88,155.87,6.41560274]
[1748902036746,59.97808779,155.88,155.86,11.46]
[1748902036937,18.53808779,155.87,155.82,6.4176614]
[1748902037137,18.53808779,155.83,155.82,6.4176614]
[1748902037746,41.42,155.84,155.82,6.4176614]
[1748902038166,59.95808779,155.84,155.82,6.4176614]
[1748902038367,59.95808779,155.84,155.81,6.41807329]
[1748902039580,18.53808779,155.83,155.81,6.41807329]
[1748902043557,164.93808779,155.82,155.71,1.5168]
[1748902043756,18.53808779,155.75,155.71,22.47768286]
[1748902043961,18.53808779,155.74,155.71,22.47768286]
[1748902044158,18.53808779,155.73,155.71,6.4221951]
[1748902044377,18.53808779,155.72,155.71,6.4221951]
[1748902044584,18.53808779,155.72,155.69,17.88268559]
[1748902044754,18.53808779,155.7,155.69,17.88268559]
[1748902045168,68.94488515,155.7,155.67,6.42384531]
[1748902045358,27.50488515,155.68,155.67,6.42384531]
[1748902045950,41.44,155.7,155.66,17.8841719]
[1748902046259,68.94488515,155.7,155.66,45.38905705]
[1748902046467,68.94488515,155.7,155.66,61.44970204]
[1748902047346,27.50488515,155.69,155.66,33.94481689]
[1748902047775,41.44,155.7,155.66,17.8841719]
[1748902047965,27.50488515,155.67,155.66,17.8841719]
[1748902048300,0.14216157,155.73,155.66,17.8841719]
[1748902048577,27.50488515,155.7,155.66,33.94481689]
[1748902049162,27.50488515,155.7,155.66,61.44970204]
[1748902049561,27.50488515,155.68,155.66,33.94481689]
[1748902049760,27.50488515,155.69,155.66,33.94481689]
[1748902050796,146.4,155.71,155.66,33.94481689]
[1748902051003,146.4,155.71,155.68,27.50488515]
[1748902051305,146.4,155.71,155.66,33.94481689]
[1748902051473,173.90488515,155.71,155.67,27.50488515]
[1748902051678,173.90488515,155.71,155.68,6.42343268]
[1748902052791,146.4,155.71,155.68,6.42343268]
[1748902053085,146.4,155.71,155.68,49.98689953]
[1748902054080,146.4,155.71,155.7,27.50488515]
[1748902054299,146.4,155.75,155.7,27.50488515]
[1748902054502,146.4,155.75,155.72,27.50488515]
[1748902054675,146.4,155.75,155.74,27.50488515]
[1748902054876,146.4,155.79,155.74,27.50488515]
[1748902055117,146.4,155.79,155.76,27.50488515]
[1748902055775,173.90488515,155.79,155.75,27.50488515]
[1748902056399,146.4,155.79,155.76,27.50488515]
[1748902056717,146.4,155.79,155.77,27.50488515]
[1748902056905,146.4,155.79,155.77,6.41972138]
[1748902057981,146.4,155.79,155.77,33.92460653]
[1748902058517,6.0143,155.84,155.78,38.94488515]
[1748902058681,27.50488515,155.83,155.79,27.50488515]
[1748902058883,27.50488515,155.83,155.8,6.41848523]
[1748902060296,175.54588515,155.86,155.81,27.50488515]
[1748902060481,148.041,155.86,155.82,27.50488515]
[1748902060681,189.481,155.86,155.82,27.50488515]
[1748902060905,148.041,155.86,155.82,27.50488515]
[1748902061095,148.041,155.86,155.83,6.41724956]
[1748902062594,175.54588515,155.86,155.83,6.41724956]
[1748902062990,175.54588515,155.86,155.82,6.4176614]
[1748902063404,27.50488515,155.85,155.82,6.4176614]
[1748902064814,27.50488515,155.84,155.81,6.41807329]
[1748902065017,27.50488515,155.83,155.81,6.41807329]
[1748902065208,148.041,155.86,155.79,42.04641317]
[1748902065209,27.50488515,155.82,155.79,6.4185644]
[1748902066810,41.42,155.85,155.78,17.85915782]
[1748902066811,27.50488515,155.81,155.78,17.85915782]
[1748902067203,0.14216157,155.84,155.78,17.85915782]
[1748902067512,27.50488515,155.81,155.78,6.41915782]
[1748902069222,18.5376582,155.81,155.78,6.41915782]
[1748902069717,146.4,155.8,155.77,17.8595682]
[1748902069888,146.4,155.8,155.77,36.3972264]
[1748902070825,20.71713357,155.86,155.79,18.5376582]
[1748902070826,146.4,155.85,155.79,18.5376582]
[1748902070998,146.4,155.85,155.82,18.5376582]
[1748902072506,146.4,155.85,155.83,6.41724956]
[1748902073106,146.4,155.85,155.83,24.95490776]
[1748902073314,146.4,155.85,155.83,33.85741156]
[1748902074023,146.4,155.85,155.83,6.41724956]
[1748902080435,27.440162,155.84,155.82,17.85760204]
[1748902080601,146.4,155.85,155.82,11.44]
[1748902080602,27.440162,155.83,155.82,11.44]
[1748902080807,146.4,155.85,155.82,45.2978234]
[1748902081007,146.4,155.85,155.82,61.34197691]
[1748902081219,146.4,155.85,155.82,33.90181491]
[1748902081525,146.4,155.85,155.82,61.34197691]
[1748902082420,146.4,155.85,155.83,27.440162]
[1748902082612,146.4,155.85,155.84,6.41683778]
[1748902083690,146.4,155.85,155.84,33.85699978]
[1748902083931,146.4,155.89,155.84,91.27909423]
[1748902084118,33.599462,155.92,155.84,91.27909423]
[1748902084119,6.1593,155.92,155.88,27.440162]
[1748902084325,6.1593,155.92,155.88,11.42]
[1748902084505,33.599462,155.92,155.88,11.42]
[1748902084826,33.599462,155.92,155.89,6.41477965]
[1748902086724,154.87361968,155.93,155.89,33.85494165]
[1748902087038,146.4,155.93,155.9,27.440162]
[1748902088545,6.5122,155.96,155.92,27.440162]
[1748902088720,6.5122,155.96,155.93,6.41313409]
[1748902088721,33.952362,155.96,155.93,6.41313409]
[1748902090821,27.440162,155.94,155.91,6.4138082]
[1748902091348,68.780162,155.95,155.91,6.4138082]
[1748902092143,27.440162,155.94,155.91,6.4138082]
[1748902092525,68.780162,155.95,155.91,6.4138082]
[1748902093228,59.84465873,155.95,155.91,6.4138082]
[1748902094639,146.4,155.94,155.91,6.4138082]
[1748902095156,146.4,155.94,155.91,40.95335885]
[1748902095462,6.41075007,155.99,155.91,40.95335885]
[1748902095463,24.65445873,156.0,155.93,18.50465873]
[1748902095631,24.65445873,156.0,155.95,18.50465873]
[1748902097536,24.65445873,156.0,155.96,6.41190048]
[1748902098243,18.50465873,155.99,155.96,6.41190048]
[1748902098935,18.50465873,155.98,155.94,29.90465873]
[1748902099129,18.50465873,155.97,155.94,11.4]
[1748902099328,18.50465873,155.96,155.94,11.4]
[1748902100573,41.32,155.99,155.94,17.81271008]
[1748902100863,18.50465873,155.97,155.94,17.81271008]
[1748902101227,18.50465873,155.96,155.94,11.4]
[1748902101429,18.50465873,155.95,155.94,11.4]
[1748902101650,18.50465873,155.95,155.9,6.41407538]
[1748902101847,18.50465873,155.92,155.9,6.41407538]
[1748902102237,18.50465873,155.93,155.9,6.41407538]
[1748902102440,20.07125873,155.95,155.9,40.95465457]
[1748902102641,20.07125873,155.95,155.9,22.44999584]
[1748902102829,18.50465873,155.91,155.88,11.4]
[1748902103035,6.0078,155.93,155.87,103.76]
[1748902103036,18.50465873,155.89,155.87,103.76]
[1748902103234,18.50465873,155.88,155.87,103.76]
[1748902104547,18.50465873,155.88,155.87,110.17560274]
[1748902104746,18.50465873,155.88,155.87,103.76]
[1748902108041,18.50465873,155.88,155.87,11.4]
[1748902109059,146.4,155.87,155.84,11.4]
[1748902109245,18.50465873,155.85,155.84,11.4]
[1748902110360,18.50465873,155.85,155.84,17.81683778]
[1748902110874,18.50465873,155.85,155.84,11.4]
[1748902111263,18.50465873,155.85,155.84,17.81683778]
[1748902111460,18.50465873,155.85,155.84,11.4]
[1748902111663,18.50465873,155.85,155.84,17.81683778]
[1748902112146,18.50465873,155.85,155.84,11.4]
[1748902112660,18.50465873,155.85,155.84,17.81683778]
[1748902113247,18.50465873,155.85,155.83,6.417192]
[1748902113451,18.50465873,155.84,155.82,11.38]
[1748902113654,18.50465873,155.83,155.82,11.38]
[1748902114455,18.50465873,155.83,155.82,17.7976614]
[1748902115273,146.4,155.85,155.82,36.30232013]
[1748902115474,164.90465873,155.91,155.84,18.50465873]
[1748902115673,146.4,155.91,155.85,26.0]
[1748902115864,146.4,155.91,155.88,18.50465873]
[1748902116057,146.4,155.91,155.88,29.88465873]
[1748902116376,146.4,155.91,155.89,6.41477965]
[1748902117068,164.90465873,155.91,155.89,6.41477965]
[1748902118647,146.4,155.91,155.89,6.41477965]
[1748902118852,61.46245873,155.93,155.89,22.45172878]
[1748902119153,27.42575006,155.92,155.89,22.45172878]
[1748902119989,1.6578,155.93,155.89,22.45172878]
[1748902120156,27.42575006,155.92,155.89,22.45172878]
[1748902120359,27.42575006,155.91,155.89,6.41477965]
[1748902121773,27.42575006,155.92,155.89,6.41477965]
[1748902122078,29.08355006,155.93,155.89,6.41477965]
[1748902122283,29.08355006,155.93,155.89,22.45172878]
[1748902123182,146.4,155.96,155.91,27.42575006]
[1748902123390,146.4,155.96,155.93,27.42575006]
[1748902123959,146.4,155.96,155.89,54.52562704]
[1748902123960,146.4,155.96,155.94,27.42575006]
[1748902124267,146.4,155.96,155.95,33.83806169]
[1748902124671,146.4,155.96,155.95,6.41231163]
[1748902124997,173.82575006,155.96,155.93,17.79313409]
[1748902125282,27.42575006,155.94,155.93,17.79313409]
[1748902125483,27.42575006,155.95,155.93,17.79313409]
[1748902125665,215.10575006,155.96,155.93,17.79313409]
[1748902126067,173.82575006,155.96,155.93,17.79313409]
[1748902127187,146.4,155.96,155.94,27.42575006]
[1748902127897,146.4,155.96,155.93,17.79313409]
[1748902128206,146.4,155.96,155.93,45.21888415]
[1748902128407,146.4,155.96,155.95,27.42575006]
[1748902128569,146.4,155.96,155.95,33.83806169]
[1748902128785,146.4,155.96,155.95,6.41231163]
[1748902130482,146.4,155.96,155.94,6.41272284]
[1748902130886,146.4,155.96,155.94,33.8384729]
[1748902131098,146.4,155.96,155.94,6.41272284]
[1748902131295,173.82575006,155.96,155.94,6.41272284]
[1748902131611,146.4,155.96,155.94,6.41272284]
[1748902132604,173.82575006,155.96,155.94,6.41272284]
[1748902133701,146.4,155.96,155.94,6.41272284]
[1748902136494,173.82575006,155.96,155.94,6.41272284]
[1748902137307,173.82575006,155.96,155.95,27.42575006]
[1748902137308,146.4,155.96,155.95,27.42575006]
[1748902137485,147.9623,156.01,155.95,27.42575006]
[1748902137689,146.4,156.01,155.99,27.42575006]
[1748902137922,146.4,156.01,155.99,38.80575006]
[1748902138227,146.4,156.01,156.0,27.42575006]
[1748902138588,146.4,156.01,155.99,38.80575006]
[1748902139018,146.4,156.01,156.0,6.41025641]
[1748902141598,146.4,156.01,155.99,17.79050781]
[1748902142107,18.48912302,156.0,155.99,11.38]
[1748902142820,0.14216157,155.99,155.92,18.48912302]
[1748902142995,18.48912302,155.95,155.93,11.34]
[1748902143190,18.48912302,155.95,155.93,17.75295654]
[1748902143935,18.48912302,155.94,155.93,17.75295654]
[1748902144135,18.48912302,155.94,155.93,11.34]
[1748902145227,27.4191652,155.94,155.93,17.75313409]
[1748902146318,173.8191652,155.95,155.93,17.75313409]
[1748902147645,173.8191652,155.95,155.9,43.45411843]
[1748902147646,68.6391652,155.94,155.89,11.34]
[1748902147846,173.8191652,155.93,155.89,11.34]
[1748902148525,27.4191652,155.92,155.89,11.34]
[1748902149644,173.8191652,155.93,155.9,6.41436818]
[1748902150746,146.4,155.92,155.9,6.41436818]
[1748902150968,27.4191652,155.91,155.89,11.34]
[1748902151125,27.4191652,155.9,155.89,11.34]
[1748902151346,146.4,155.92,155.89,11.34]
[1748902151552,27.4191652,155.91,155.89,11.34]
[1748902151785,27.4191652,155.91,155.89,17.75477965]
[1748902153577,27.4191652,155.9,155.89,17.75477965]
[1748902154670,27.4191652,155.91,155.89,17.75477965]
[1748902155245,27.4191652,155.91,155.89,6.41477965]
[1748902155441,27.4191652,155.91,155.88,6.41519117]
[1748902155862,146.4,155.92,155.88,49.8723343]
[1748902156550,173.8191652,155.92,155.88,22.4531691]
[1748902157352,146.4,155.92,155.88,22.4531691]
[1748902157547,27.4191652,155.91,155.88,22.4531691]
[1748902157768,27.4191652,155.91,155.88,6.41519117]
[1748902157960,68.6391652,155.91,155.88,6.41519117]
[1748902158874,27.4191652,155.89,155.86,6.41601437]
[1748902159997,27.4191652,155.88,155.86,6.41601437]
[1748902161891,27.4191652,155.89,155.86,6.41601437]
[1748902162598,146.4,155.88,155.86,6.41601437]
[1748902164775,173.8191652,155.88,155.85,17.75627368]
[1748902164977,173.8191652,155.87,155.85,17.75627368]
[1748902165184,173.8191652,155.87,155.81,16.04418769]
[1748902165385,173.8191652,155.86,155.82,11.34]
[1748902165797,146.4,155.86,155.82,17.7576614]
[1748902166096,27.4191652,155.85,155.82,17.7576614]
[1748902166400,146.4,155.86,155.82,17.7576614]
[1748902166599,173.8191652,155.86,155.82,17.7576614]
[1748902166987,27.4191652,155.84,155.82,17.7576614]
[1748902167300,18.53322297,155.84,155.82,17.7576614]
[1748902167686,187.6,155.85,155.82,17.7576614]
[1748902167882,206.13322297,155.85,155.82,17.7576614]
[1748902168797,18.53322297,155.84,155.82,17.7576614]
[1748902169476,187.6,155.85,155.82,17.7576614]
[1748902169679,206.13322297,155.85,155.82,17.7576614]
[1748902169883,164.93322297,155.84,155.82,17.7576614]
[1748902171602,146.4,155.84,155.82,17.7576614]
[1748902174390,146.4,155.84,155.82,6.4176614]
[1748902174796,187.6,155.84,155.82,6.4176614]
[1748902175176,187.6,155.84,155.81,6.41807329]
[1748902175700,187.1,155.84,155.81,6.41807329]
[1748902176206,187.1,155.84,155.81,22.46325652]
[1748902176902,187.1,155.84,155.81,40.99647949]
[1748902179719,145.9,155.88,155.83,46.19332297]
[1748902179922,145.9,155.88,155.87,18.53322297]
[1748902180278,25.15982297,155.94,155.87,18.53322297]
[1748902180279,145.9,155.91,155.87,18.53322297]
[1748902180482,145.9,155.91,155.9,18.53322297]
[1748902181011,145.9,155.91,155.89,18.53322297]
[1748902181786,145.9,155.91,155.9,6.41436818]
[1748902182318,145.9,155.91,155.9,24.94759115]
[1748902184802,145.9,155.91,155.9,6.41436818]
[1748902185799,187.08,155.91,155.88,18.53322297]
[1748902186102,187.08,155.91,155.87,24.94882571]
[1748902186302,145.9,155.9,155.87,24.94882571]
[1748902187029,145.9,155.9,155.88,18.53322297]
[1748902187815,145.9,155.9,155.89,6.41477965]
[1748902189142,145.9,155.9,155.88,6.41513598]
[1748902189344,205.61322297,155.89,155.8,92.34]
[1748902189530,18.53322297,155.87,155.83,11.3]
[1748902189730,59.71322297,155.87,155.83,11.3]
[1748902189937,59.71322297,155.87,155.83,17.7168423]
[1748902190472,41.18,155.87,155.83,36.25006527]
[1748902190827,59.71322297,155.87,155.83,17.7168423]
[1748902191852,18.53322297,155.84,155.81,6.41794112]
[1748902192064,59.69322297,155.83,155.81,6.41794112]
[1748902192226,41.16,155.83,155.81,6.41794112]
[1748902193441,59.69322297,155.83,155.81,6.41794112]
[1748902193633,59.69322297,155.83,155.79,6.41889723]
[1748902193832,18.53322297,155.81,155.78,6.41914263]
[1748902194036,59.69322297,155.8,155.78,6.41914263]
[1748902194231,41.16,155.8,155.77,17.71955339]
[1748902194542,59.69322297,155.8,155.77,17.71955339]
[1748902195333,59.69322297,155.8,155.77,6.41955339]
[1748902196342,18.53322297,155.79,155.77,6.41955339]
[1748902196947,18.53322297,155.78,155.76,9.83426911]
[1748902197173,59.69322297,155.77,155.76,9.83426911]
[1748902197472,59.69322297,155.77,155.72,6.42178268]
[1748902197676,18.53322297,155.73,155.72,6.42178268]
[1748902197847,41.18,155.73,155.72,6.42178268]
[1748902198182,59.71322297,155.73,155.69,6.4230201]
[1748902198549,59.71322297,155.73,155.69,22.48057036]
[1748902201280,18.53322297,155.72,155.68,6.42343268]
[1748902201979,41.18,155.73,155.68,6.42343268]
[1748902202152,18.53322297,155.7,155.68,6.42343268]
[1748902202346,59.71322297,155.7,155.68,6.42343268]
[1748902203156,18.53322297,155.69,155.67,6.4236912]
[1748902203363,18.53322297,155.68,155.67,6.4236912]
[1748902203565,18.53322297,155.68,155.66,17.74411989]
[1748902203566,145.9,155.67,155.66,17.74411989]
[1748902203768,187.06,155.67,155.66,17.74411989]
[1748902203996,59.69322297,155.67,155.63,6.42549636]
[1748902204308,18.53322297,155.65,155.63,6.42549636]
[1748902204487,41.18,155.64,155.63,6.42549636]
[1748902204807,59.71322297,155.64,155.63,6.42549636]
[1748902205197,59.71322297,155.64,155.61,11.28]
[1748902205385,59.71322297,155.64,155.62,6.42590926]
[1748902205999,18.53322297,155.63,155.62,6.42590926]
[1748902206377,59.71322297,155.64,155.62,6.42590926]
[1748902207007,18.53322297,155.63,155.62,6.42590926]
[1748902207386,18.53322297,155.63,155.6,22.49264489]
[1748902207721,18.53322297,155.61,155.6,6.42673521]
[1748902207908,59.71322297,155.61,155.6,6.42673521]
[1748902208284,59.71322297,155.61,155.58,6.42748896]
[1748902208605,41.18,155.61,155.58,6.42748896]
[1748902208784,41.18,155.62,155.59,18.53322297]
[1748902209188,18.53322297,155.64,155.6,18.53322297]
[1748902209391,18.53322297,155.71,155.64,6.42508352]
[1748902209599,18.53322297,155.71,155.67,18.53322297]
[1748902209908,18.53322297,155.71,155.64,22.48779233]
[1748902210108,44.16449436,155.72,155.67,18.53322297]
[1748902210298,18.53322297,155.7,155.65,18.53322297]
[1748902211010,59.71322297,155.71,155.66,18.53322297]
[1748902211194,68.68319185,155.71,155.66,27.50319185]
[1748902211512,68.68319185,155.71,155.67,6.42384531]
[1748902212411,68.68334852,155.71,155.67,6.42384531]
[1748902212607,27.50334852,155.71,155.67,6.42384531]
[1748902212796,27.50334852,155.7,155.67,6.42384531]
[1748902213001,66.81127139,155.72,155.67,6.42384531]
[1748902213002,27.50334852,155.69,155.67,6.42384531]
[1748902213502,27.50334852,155.7,155.67,6.42384531]
[1748902213819,17.83017139,155.72,155.69,27.50334852]
[1748902214113,17.83017139,155.72,155.67,11.3]
[1748902214114,17.83017139,155.72,155.71,27.50334852]
[1748902215291,41.18,155.77,155.71,27.50334852]
[1748902215491,41.18,155.77,155.69,26.0]
[1748902215492,68.68334852,155.77,155.72,27.50334852]
[1748902215718,27.50334852,155.76,155.71,27.50334852]
[1748902215900,27.50334852,155.76,155.72,6.42178268]
[1748902216099,27.50334852,155.76,155.72,22.47623939]
[1748902216416,27.50334852,155.74,155.72,6.42178268]
[1748902218103,27.50334852,155.74,155.71,6.4221951]
[1748902218817,27.50334852,155.75,155.71,6.4221951]
[1748902219043,41.18,155.77,155.71,6.4221951]
[1748902219248,47.59979672,155.77,155.71,6.4221951]
[1748902219449,41.18,155.77,155.71,6.4221951]
[1748902219948,0.14216157,155.76,155.71,6.4221951]
[1748902220327,146.4,155.75,155.71,6.4221951]
[1748902221169,0.14216157,155.74,155.7,11.28]
[1748902221339,27.50334852,155.71,155.66,11.28]
[1748902221543,27.50334852,155.7,155.66,11.28]
[1748902222253,27.50334852,155.7,155.67,6.42384531]
[1748902222455,68.66334852,155.69,155.66,17.70414142]
[1748902222657,27.50334852,155.68,155.66,17.70414142]
[1748902222858,27.50334852,155.67,155.63,6.42549636]
[1748902223058,27.50334852,155.65,155.63,6.42549636]
[1748902223357,27.50334852,155.64,155.62,17.70575074]
[1748902225151,27.50334852,155.63,155.57,38.80334852]
[1748902225338,27.50334852,155.63,155.58,49.99981335]
[1748902226755,27.50334852,155.64,155.59,27.50334852]
[1748902227149,27.50334852,155.63,155.58,49.99981335]
[1748902227776,27.50334852,155.6,155.58,6.42756138]
[1748902227946,27.50334852,155.61,155.58,6.42756138]
[1748902228338,41.16,155.62,155.58,49.99981335]
[1748902228560,41.16,155.63,155.59,27.50334852]
[1748902228752,41.16,155.63,155.6,6.42673521]
[1748902228952,68.66334852,155.63,155.6,6.42673521]
[1748902230375,41.16,155.63,155.6,6.42673521]
[1748902231264,68.66334852,155.63,155.6,6.42673521]
[1748902232371,41.16,155.63,155.6,22.49357325]
[1748902232572,41.16,155.63,155.6,6.42673521]
[1748902233063,41.16,155.63,155.6,33.93008373]
[1748902233241,41.16,155.63,155.6,49.99692177]
[1748902233852,41.16,155.63,155.6,33.93008373]
[1748902234069,41.16,155.63,155.6,6.42673521]
[1748902234576,68.66334852,155.63,155.6,6.42673521]
[1748902235078,68.66334852,155.63,155.59,6.42714827]
[1748902236186,41.16,155.63,155.59,33.93049679]
[1748902236394,146.4,155.65,155.62,27.50334852]
[1748902236559,146.4,155.65,155.64,27.50334852]
[1748902236989,146.4,155.65,155.64,33.92843204]
[1748902239592,187.56,155.7,155.64,49.99114085]
[1748902239795,187.56,155.7,155.67,27.50334852]
[1748902240717,146.4,155.7,155.69,27.50334852]
[1748902240877,146.4,155.7,155.69,38.76334852]
[1748902241299,146.4,155.7,155.69,45.18636862]
[1748902243324,146.4,155.7,155.67,38.76334852]
[1748902243486,41.14,155.69,155.65,17.68467073]
[1748902243893,41.14,155.69,155.66,27.50334852]
[1748902245013,41.14,155.69,155.67,27.50334852]
[1748902245205,41.14,155.69,155.68,6.42343268]
[1748902245592,41.14,155.69,155.68,33.9267812]
[1748902245791,41.14,155.69,155.68,6.42343268]
[1748902246308,41.14,155.69,155.67,27.50334852]
[1748902246309,41.14,155.69,155.67,6.42375109]
[1748902247403,41.14,155.69,155.66,6.42425799]
[1748902248812,41.14,155.69,155.66,33.92760651]
[1748902250517,146.4,155.7,155.68,27.50334852]
[1748902250703,146.4,155.7,155.69,27.50334852]
[1748902253203,146.4,155.7,155.69,33.92636862]
[1748902255714,146.4,155.7,155.69,6.4230201]
[1748902256232,146.4,155.7,155.66,43.56399351]
[1748902256528,146.4,155.7,155.67,6.42384531]
[1748902256748,41.1,155.69,155.67,6.42384531]
[1748902257131,41.1,155.69,155.66,6.42414142]
[1748902257132,68.60334852,155.69,155.66,6.42414142]
[1748902257542,41.1,155.69,155.66,6.42414142]
[1748902258449,27.50334852,155.68,155.65,17.68463042]
[1748902258655,187.5,155.67,155.65,17.68463042]
[1748902260375,146.4,155.66,155.65,17.6846618]
[1748902260561,146.4,155.72,155.65,45.18801032]
[1748902260762,187.5,155.72,155.69,27.50334852]
[1748902261245,187.5,155.72,155.68,27.50334852]
[1748902261754,146.4,155.72,155.68,27.50334852]
[1748902261947,41.1,155.71,155.69,6.4230201]
[1748902262151,146.4,155.72,155.7,27.50334852]
[1748902262459,146.4,155.72,155.71,27.50334852]
[1748902263748,6.4926,155.77,155.71,38.76334852]
[1748902263749,146.4,155.77,155.71,38.76334852]
[1748902263933,154.31143388,155.78,155.76,27.50334852]
[1748902264151,146.4,155.78,155.77,27.50334852]
[1748902264771,41.1,155.81,155.77,27.50334852]
[1748902264968,41.1,155.81,155.79,27.50334852]
[1748902265486,41.1,155.81,155.78,27.50334852]
[1748902265853,41.1,155.81,155.76,11.24]
[1748902265854,41.1,155.82,155.79,33.92218746]
[1748902266060,41.1,155.82,155.79,27.50334852]
[1748902266254,41.1,155.82,155.78,27.50334852]
[1748902266455,27.50334852,155.79,155.67,6.0853]
[1748902266681,27.50334852,155.76,155.71,53.50334852]
[1748902267381,27.50334852,155.76,155.71,27.50334852]
[1748902267964,27.50334852,155.76,155.71,33.925315]
[1748902268474,27.50334852,155.74,155.69,38.74334852]
[1748902268680,68.58334852,155.74,155.69,38.74334852]
[1748902269062,41.08,155.74,155.7,27.50334852]
[1748902269964,41.08,155.74,155.71,6.4221951]
[1748902270159,146.4,155.76,155.73,27.50334852]
[1748902270361,146.4,155.76,155.71,6.4221951]
[1748902270362,41.08,155.8,155.75,27.50334852]
[1748902270586,6.1802,155.81,155.77,27.50334852]
[1748902270761,47.2602,155.81,155.77,27.50334852]
[1748902271679,27.50334852,155.78,155.76,11.22]
[1748902271882,27.50334852,155.77,155.76,11.22]
[1748902272273,41.08,155.78,155.76,11.22]
[1748902272480,68.58334852,155.78,155.76,11.22]
[1748902272878,41.08,155.78,155.76,17.64004277]
[1748902273986,33.68354852,155.81,155.76,45.14339129]
[1748902274190,175.48974852,155.82,155.77,27.50334852]
[1748902274366,189.0664,155.82,155.78,27.50334852]
[1748902274566,216.56974852,155.82,155.77,27.50334852]
[1748902274791,27.50334852,155.81,155.76,45.14339129]
[1748902275794,147.9864,155.82,155.78,27.50334852]
[1748902275991,146.4,155.82,155.81,33.92142181]
[1748902276670,146.4,155.82,155.81,6.41807329]
[1748902277105,146.4,155.82,155.76,12.7912]
[1748902277397,146.4,155.82,155.77,49.97237336]
[1748902277398,173.90334852,155.82,155.77,49.97237336]
[1748902277777,173.90334852,155.82,155.75,6.42054574]
[1748902277778,27.50334852,155.78,155.75,6.42054574]
[1748902278093,27.50334852,155.77,155.75,6.42054574]
[1748902278271,68.56334852,155.78,155.75,6.42054574]
[1748902278687,41.06,155.78,155.75,6.42054574]
[1748902279103,27.50334852,155.79,155.75,6.42054574]
[1748902279280,41.06,155.79,155.75,33.92389426]
[1748902279484,68.56334852,155.79,155.75,6.42054574]
[1748902281395,27.50334852,155.78,155.75,6.42054574]
[1748902282702,27.50334852,155.77,155.75,6.42054574]
[1748902283092,214.96334852,155.76,155.74,11.22]
[1748902283404,27.50334852,155.75,155.71,6.42203247]
[1748902283599,187.46,155.76,155.71,6.42203247]
[1748902283600,27.50334852,155.73,155.71,6.42203247]
[1748902284371,68.56334852,155.73,155.7,6.42260757]
[1748902284803,27.50334852,155.72,155.7,6.42260757]
[1748902285306,146.4,155.76,155.7,33.92595609]
[1748902285477,214.96334852,155.76,155.71,27.50334852]
[1748902285682,214.96334852,155.76,155.7,49.98247503]
[1748902285683,27.50334852,155.75,155.7,49.98247503]
[1748902286909,187.46,155.76,155.7,49.98247503]
[1748902288302,146.4,155.75,155.7,6.42260757]
[1748902288487,27.50334852,155.74,155.7,22.47912651]
[1748902288818,146.4,155.75,155.73,27.50334852]
[1748902289290,146.4,155.75,155.74,27.50334852]
[1748902289681,146.4,155.75,155.73,27.50334852]
[1748902289901,146.4,155.75,155.72,27.50334852]
[1748902290180,146.4,155.75,155.73,27.50334852]
[1748902290602,1.6506,155.8,155.75,22.4719101]
[1748902290903,1.6506,155.8,155.75,61.19525862]
[1748902290904,29.15394852,155.8,155.75,61.19525862]
[1748902291583,1.6506,155.8,155.75,17.64054574]
[1748902291806,27.50334852,155.78,155.75,17.64054574]
[1748902292112,27.50334852,155.79,155.75,17.64054574]
[1748902292905,27.50334852,155.78,155.75,17.64054574]
[1748902293805,68.54334852,155.79,155.75,33.6919101]
[1748902295816,146.4,155.78,155.75,33.6919101]
[1748902297828,173.90334852,155.78,155.75,17.64054574]
[1748902297999,41.04,155.79,155.75,11.22]
[1748902298000,27.50334852,155.76,155.75,11.22]
[1748902298195,68.54334852,155.76,155.75,17.64054574]
[1748902298719,41.04,155.76,155.75,17.64054574]
[1748902300121,68.54334852,155.76,155.75,17.64054574]